[Event "13th Palmanova Festival A 2024"]
[Site "Palmanova"]
[Date "2024.12.29"]
[Round "3.7"]
[White "Casadio, Niccolo`"]
[Black "Di Benedetto, Edoardo"]
[Result "0-1"]
[ECO "A25"]
[WhiteElo "2275"]
[BlackElo "2411"]
[Annotator "TA"]
[PlyCount "158"]
[EventDate "2024.12.27"]
[EventCountry "ITA"]
[SourceTitle "playchess.com"]
[Source "ChessBase"]
[SourceQuality "1"]
[TimeControl "6000+30"]

{[%evp 44,158,-25,-18,-21,-22,0,-15,-17,-7,0,0,0,0,0,-308,-41,-28,0,0,0,-35,-36,-103,-8,-29,0,0,0,-27,-4,0,0,0,0,0,0,0,0,-22,0,-16,-16,-8,-8,-8,-8,-155,-151,-165,-79,-79,-79,-345,-23,-24,-31,-31,0,0,0,-472,0,-641,-552,-1037,-860,-1393,-1281,-1159,-1023,-2598,-2412,-3637,-1829,-29954,-29956,-29948,-29951,-12837,-29943,-4834,0,-29956,-29953,-29968,-29970,-29973,-29974,-29973,-29974,-29974,-29974,-29974,-29975,-29975,-29976,-29976,-29977,-29977,-29978,-29978,-29979,-29978,-29979,-29980,-29981,-29982,-29983,-29984,-29985,-29985,-29986,-29986,-29987,-29987,-29986]} 1. c4 {[%emt 0:14:03]} e5 {[%emt 0:03:05]} 2. g3 {[%emt 0:00:09]} Nf6 {[%emt 0:00:12]} 3. Bg2 {[%emt 0:00:06]} Nc6 {[%emt 0:00:28]} 4. Nc3 {[%emt 0:01:22]} Bb4 {[%emt 0:00:23]} 5. Nd5 {[%emt 0:00:43]} Bc5 {[%emt 0:01:06]} 6. e3 {[%emt 0:01:07]} O-O {[%emt 0:01:25] A25: English Opening vs King's Indian with ...Nc6 but without early d3.} 7. a3 {[%emt 0:02:24]} Nxd5 {[%emt 0:03:10]} 8. Bxd5 {[%emt 0:03:56]} a5 {[%emt 0:02:33]} 9. Ne2 {[%emt 0:00:09]} d6 $146 {[%emt 0:03:12]} ({Predecessor:} 9... Ne7 10. Bg2 d5 11. d4 exd4 12. exd4 Ba7 13. c5 c6 14. Nc3 Bb8 15. O-O f5 {0-1 Csoke,A (2156)-Forgo,E (2258) HUN-chT 9900 1999 (3)}) 10. Bg2 {[%emt 0:01:19]} Bb6 {[%emt 0:13:15]} 11. O-O {[%emt 0:04:12]} Ne7 {[%emt 0:02:49]} 12. d4 {[%emt 0:01:41]} c6 {[%emt 0:00:26]} 13. b3 {[%emt 0:04:16]} Bg4 {[%emt 0:06:10]} 14. Bb2 {[%emt 0:06:04]} exd4 {[%emt 0:03:13]} 15. exd4 {[%emt 0:00:33]} d5 {[%emt 0:02:21]} 16. c5 {[%emt 0:01:13]} Bc7 {[%emt 0:00:08]} 17. Qd2 {[%emt 0:00:05]} Qd7 {[%emt 0:01:42]} 18. Rfe1 {[%emt 0:00:48]} Ng6 {[%emt 0:05:21]} 19. Nc1 {[%emt 0:02:54]} h5 {[%emt 0:10:34]} 20. Nd3 {[%emt 0:02:44]} f6 {[%emt 0:04:56]} 21. a4 {[%emt 0:01:28]} h4 {[%emt 0:05:54]} 22. Re3 {[%emt 0:00:21]} Rfe8 {[%emt 0:05:08]} 23. Rae1 {[%emt 0:00:47]} Rxe3 {[%emt 0:01:43]} 24. Qxe3 {[%emt 0:01:35]} Bh3 {[%emt 0:05:38]} 25. Bc3 {[%emt 0:03:53]} Bxg2 {[%emt 0:00:08]} 26. Kxg2 {[%emt 0:00:05]} Qf5 {[%emt 0:06:21]} 27. f3 {[%emt 0:08:25]} Kf7 {[%emt 0:03:33]} 28. Nf2 {[%emt 0:01:44]} Rh8 {[%emt 0:01:26]} 29. Qd3 $2 {[%emt 0:01:19][%mdl 8192]} (29. f4 $11) 29... Qxd3 $2 {[%emt 0:00:37]} (29... hxg3 $1 $19 30. Qxf5 (30. hxg3 $2 {loses.} Qg5 $19) 30... Nh4+ (30... gxf2 31. Qe6+ Kf8 32. Qe8#) 31. Kf1 Nxf5 32. hxg3 Bxg3 (32... Nxg3+ $2 33. Kg1 $19)) 30. Nxd3 $15 {[%emt 0:00:06]} hxg3 {[%emt 0:00:04]} 31. hxg3 {[%emt 0:00:09]} Ne7 {[%emt 0:00:18]} 32. f4 {[%emt 0:06:04]} Nf5 {[%emt 0:01:49]} 33. Rb1 {[%emt 0:04:29]} (33. Kf3 $1 $15) 33... g5 {[%emt 0:06:21]} (33... Re8 $1 $17 {[%cal Re8e3] Threatens to win with ...Re3.} 34. Re1 Re4) 34. b4 $1 $11 {[%emt 0:00:38]} axb4 {[%emt 0:00:52]} 35. Rxb4 {[%emt 0:00:11]} Rb8 {[%emt 0:00:07]} 36. Rb1 {[%emt 0:02:42]} gxf4 {[%emt 0:00:21]} 37. Nxf4 {[%emt 0:01:40]} Ke7 {[%emt 0:05:11]} 38. Kf3 {[%emt 0:04:20]} Kd7 {[%emt 0:00:57]} 39. Rh1 {[%emt 0:00:46]} Re8 {[%emt 0:00:36]} 40. Rh7+ {[%emt 0:01:17]} Kc8 {[%emt 0:03:05]} 41. Kg4 {[%emt 0:02:02]} Bxf4 {[%emt 0:00:00]} 42. Kxf4 {[%emt 0:00:00]} Nxg3 {[%emt 0:00:00]} 43. Kxg3 {[%emt 0:00:00]} Re3+ {[%emt 0:00:00]} 44. Kf4 {[%emt 0:00:00]} Rxc3 {[%emt 0:00:00]} 45. Kf5 {[%emt 0:00:00]} (45. Rh8+ $1 $11 Kc7 46. Rh4) 45... Kb8 $1 $17 {[%emt 0:00:00]} 46. Ke6 {[%emt 0:00:00]} Rd3 {[%emt 0:00:00]} (46... Ka7 $1 $19 {aiming for ...Re3+.} 47. Rh1 Rd3) 47. Rh4 $17 {[%emt 0:00:00]} Re3+ $1 {[%emt 0:00:00]} 48. Kxf6 $2 {[%emt 0:00:00][%mdl 8192]} (48. Kd6 $17 {might work better.}) 48... Ka7 $2 {[%emt 0:00:00]} ({Black should play} 48... Re4 $1 $19 {[%cal Re4h4]} 49. Rh8+ Ka7) 49. Kf5 $11 {[%emt 0:00:00]} Re7 {[%emt 0:00:00]} 50. Rg4 {[%emt 0:00:00]} Ka6 {[%emt 0:00:00]} 51. Rg8 $1 {[%emt 0:00:00]} Ka5 {[%emt 0:00:00]} 52. Ra8+ {[%emt 0:00:00]} Kb4 {[%emt 0:00:00]} 53. Ra7 $2 {[%emt 0:00:00][%mdl 8192]} (53. a5 $11) 53... Kc4 $19 {[%emt 0:00:00]} 54. a5 {[%emt 0:00:00]} Kxd4 {[%emt 0:00:00]} 55. a6 {[%emt 0:00:00]} Re5+ {[%emt 0:00:00]} (55... Kxc5 $2 {too greedy.} 56. axb7 $18) 56. Kf6 {[%emt 0:00:00]} bxa6 {[%emt 0:00:00]} 57. Rxa6 {[%emt 0:00:00]} Rh5 {[%emt 0:00:00]} 58. Kg6 {[%emt 0:00:00]} Rh1 {[%emt 0:00:00]} 59. Rxc6 {[%emt 0:00:00]} Rc1 {[%emt 0:00:00]} 60. Kf5 {[%emt 0:00:00]} Rxc5 {[%emt 0:00:00]} 61. Ra6 {[%emt 0:00:00]} Kd3 {[%emt 0:00:00]} 62. Kf4 {[%emt 0:00:00]} Rc4+ $2 {[%emt 0:00:00]} ({Black should try} 62... Rc8 $19 {( -> ...d4)} 63. Ra3+ Rc3) 63. Kf3 $2 {[%emt 0:00:00][%mdl 8192]} (63. Ke5 $11) 63... d4 {[%emt 0:00:00]} 64. Ra3+ {[%emt 0:00:00]} Kd2 {[%emt 0:00:00]} 65. Kf2 {[%emt 0:00:00]} d3 {[%emt 0:00:00]} 66. Ra2+ {[%emt 0:00:00]} Rc2 {[%emt 0:00:00]} 67. Ra1 {[%emt 0:00:00]} Rc7 {[%emt 0:03:35]} 68. Ra2+ {[%emt 0:00:00] [#]} Kc1 $1 {[%emt 0:00:27]} 69. Ra1+ {[%emt 0:00:00]} Kb2 {[%emt 0:00:27]} 70. Ra8 {[%emt 0:00:00]} Re7 {[%emt 0:00:06]} 71. Rd8 {[%emt 0:00:00]} Kc2 {[%emt 0:00:06]} 72. Rc8+ {[%emt 0:00:00]} Kd1 {[%emt 0:00:07]} 73. Rd8 {[%emt 0:00:00]} d2 {[%emt 0:00:05]} 74. Rc8 {[%emt 0:00:00]} Rf7+ {[%emt 0:00:17]} 75. Kg2 {[%emt 0:00:00]} Rf5 {[%emt 0:00:11]} 76. Rc7 {[%emt 0:00:00]} Ke2 {[%emt 0:00:17]} 77. Re7+ {[%emt 0:00:00] [#]} Kd3 $1 {[%emt 0:00:04]} 78. Rd7+ {[%emt 0:00:00]} Ke3 {[%emt 0:00:34]} 79. Kg3 {[%emt 0:00:00]} Rg5+ {[%emt 0:00:04]} 0-1

[Event "13th Palmanova Festival A 2024"]
[Site "Palmanova"]
[Date "2024.12.29"]
[Round "3.8"]
[White "Skrbec, Leon"]
[Black "Hovhannisyan, Mher"]
[Result "1/2-1/2"]
[ECO "D32"]
[WhiteElo "2265"]
[BlackElo "2397"]
[Annotator "TA"]
[PlyCount "191"]
[EventDate "2024.12.27"]
[EventCountry "ITA"]
[SourceTitle "playchess.com"]
[Source "ChessBase"]
[SourceQuality "1"]
[TimeControl "6000+30"]

{[%evp 25,191,0,0,-12,0,-26,-29,-25,0,0,0,0,-2,-9,0,-56,-43,-27,-20,-77,-75,-90,-68,-64,-59,-63,-60,-73,-62,-58,-65,-143,-145,-149,-148,-121,-51,-68,-58,-63,-63,-63,-63,-63,-63,-91,-88,-104,-106,-93,-96,-92,-104,-110,-108,-110,-68,-68,-68,-68,-29,-29,-28,-28,-28,-28,-28,-28,-28,-28,-28,-28,-29,-29,-29,-29,-28,-28,-28,-31,-13,-13,-13,-13,-13,-13,-13,-13,-13,-13,-13,-13,-13,-13,-13,-13,-13,-13,-13,-13,-13,-8,0,-13,-13,-13,-8,-13,-13,-13,-13,-13,-13,-13,0,-13,0,-13,0,-13,-8,-13,0,-13,0,-13,-8,-8,-8,-8,-8,-8,-8,-8,-8,-8,-8,-8,-8,-8,-8,-8,-8,-8,-8,-8,-8,-15,-8,-15,-15,-15,-15,-15,0,-15,-8,-8,-8,-8,-8,-8,-8,-8,-8,-8,0,0]} 1. d4 {[%emt 0:00:12]} d5 {[%emt 0:00:21]} 2. c4 {[%emt 0:00:10]} e6 {[%emt 0:00:05]} 3. Nc3 {[%emt 0:00:13]} c5 {[%emt 0:02:09]} 4. cxd5 {[%emt 0:06:48]} cxd4 {[%emt 0:00:56]} 5. Qxd4 {[%emt 0:00:11]} Nc6 {[%emt 0:00:26]} 6. Qd1 {[%emt 0:02:22]} exd5 {[%emt 0:00:09]} 7. e3 {[%emt 0:00:07]} Nf6 {[%emt 0:02:38]} 8. Nf3 {[%emt 0:00:16]} a6 {[%emt 0:20:30]} 9. Be2 {[%emt 0:00:51]} Bd6 {[%emt 0:06:00]} 10. O-O {[%emt 0:04:21]} O-O {[%emt 0:01:24]} 11. b3 {[%emt 0:05:07]} Bg4 {[%emt 0:04:27]} 12. Bb2 {[%emt 0:01:05][%cal Bc1b2,Bb2a3,Ba3c5,Bc5d4][%mdl 32]} Bc7 {[%emt 0:05:29]} 13. Ba3 {[%emt 0:07:02]} Re8 {[%emt 0:00:39]} 14. h3 {[%emt 0:02:39]} Bh5 {[%emt 0:04:28]} 15. Nd4 {[%emt 0:06:04]} Nxd4 {[%emt 0:15:55]} 16. Bxh5 {[%emt 0:00:20]} Nb5 {[%emt 0:00:39]} 17. Nxb5 {[%emt 0:05:12]} axb5 {[%emt 0:00:09]} 18. Bc5 {[%emt 0:01:14]} Ne4 {[%emt 0:08:43]} 19. Bd4 {[%emt 0:04:56]} b4 {[%emt 0:02:18]} 20. Bg4 {[%emt 0:05:23]} (20. Qc2 $11) 20... Qd6 {[%emt 0:03:16]} 21. f4 $1 {[%emt 0:01:28]} Bb6 {[%emt 0:01:45]} 22. Re1 {[%emt 0:05:55]} (22. Bf3 $11) 22... Nc3 $36 {[%emt 0:07:40][%mdl 2048] Black is in control.} 23. Qd2 {[%emt 0:00:34]} Bxd4 {[%emt 0:00:23]} 24. Qxd4 {[%emt 0:00:32][%cal Oa2a3]} Re4 {[%emt 0:03:04]} 25. Qd2 {[%emt 0:04:54][%cal Oa2a3]} Qc5 {[%emt 0:02:55][%cal Oa8e8]} 26. Kh2 $1 {[%emt 0:00:11][%cal Oa2a3]} g6 {[%emt 0:10:17]} 27. Bf3 {[%emt 0:02:52]} Re6 {[%emt 0:04:16]} 28. Qd4 {[%emt 0:06:30] Inhibits Rae8.} (28. Rac1 $15) 28... Qxd4 {[%emt 0:00:32]} 29. exd4 {[%emt 0:00:06][%cal Of4f5]} Rxe1 {[%emt 0:00:20]} 30. Rxe1 {[%emt 0:00:06] [#]} Rxa2 {[%emt 0:00:05][%mdl 4096] Endgame KRB-KRN. Black is a pawn up.} (30... Kf8 $1 $17 31. f5 Rxa2) 31. Re7 $1 $15 {[%emt 0:01:40]} Rd2 {[%emt 0:00:48]} 32. Rxb7 {[%emt 0:00:28]} Rxd4 {[%emt 0:00:05][%cal Oc3e4]} 33. Kg3 {[%emt 0:01:18]} Kg7 {[%emt 0:02:56]} 34. Kf2 $1 {[%emt 0:04:59] Ke3 is the strong threat.} Rxf4 {[%emt 0:00:08]} 35. g3 {[%emt 0:00:33]} Ne4+ {[%emt 0:01:30]} 36. Kg2 {[%emt 0:00:22]} Rf5 {[%emt 0:00:24] aiming for ...Nc5.} 37. Rxb4 {[%emt 0:00:21]} Nd2 {[%emt 0:00:38]} 38. Bg4 {[%emt 0:06:58]} Re5 {[%emt 0:00:06]} 39. Rb7 {[%emt 0:00:19]} Re3 {[%emt 0:00:49]} 40. Rd7 {[%emt 0:03:12]} h5 {[%emt 0:00:30]} ({And not} 40... Rxb3 41. Be6 $14) 41. Rxd5 {[%emt 0:00:45]} Nxb3 {[%emt 0:00:33]} 42. Bf3 {[%emt 0:00:23]} Rc3 {[%emt 0:00:00]} 43. Rd7 {[%emt 0:00:00]} Nc5 {[%emt 0:00:00]} 44. Rc7 {[%emt 0:00:00] [#]} Ne4 $1 {[%emt 0:00:00]} 45. Rxc3 {[%emt 0:00:00]} Nxc3 $11 {[%emt 0:00:00] KB-KN. Black is a pawn up.} 46. h4 {[%emt 0:00:00]} Kf6 {[%emt 0:00:00]} 47. Bc6 {[%emt 0:00:00]} Ne2 {[%emt 0:00:00]} 48. Bb5 {[%emt 0:00:00]} Nd4 {[%emt 0:00:00]} 49. Ba4 {[%emt 0:00:00]} Nf5 {[%emt 0:00:00]} 50. Bb3 {[%emt 0:00:00]} Nd6 {[%emt 0:00:00]} 51. Kf3 {[%emt 0:00:00]} Kg7 {[%emt 0:00:00]} 52. Bd5 {[%emt 0:00:00]} f5 {[%emt 0:00:00]} 53. Kf4 {[%emt 0:00:00]} Kf6 {[%emt 0:00:00]} 54. Bc6 $1 {[%emt 0:00:00]} Nf7 {[%emt 0:00:00]} 55. Ba4 {[%emt 0:00:00]} Nd8 {[%emt 0:00:00]} 56. Be8 {[%emt 0:00:00]} Ne6+ {[%emt 0:00:00]} 57. Kf3 {[%emt 0:00:00]} Nc7 {[%emt 0:00:00]} 58. Ba4 {[%emt 0:00:00]} Ke5 {[%emt 0:00:00]} 59. Bd7 {[%emt 0:00:00]} Nd5 {[%emt 0:03:21]} 60. Be8 {[%emt 0:00:00]} Ne7 {[%emt 0:00:43]} 61. Bf7 {[%emt 0:00:00]} Kf6 {[%emt 0:00:27]} 62. Be8 {[%emt 0:00:00]} Nc8 {[%emt 0:02:06]} 63. Kf4 {[%emt 0:00:00]} Ne7 {[%emt 0:00:36]} 64. Kf3 {[%emt 0:00:00]} Nd5 {[%emt 0:00:35]} 65. Bc6 {[%emt 0:00:00]} Nc3 {[%emt 0:01:06]} 66. Be8 {[%emt 0:00:00]} Ne4 {[%emt 0:01:51]} 67. Kf4 {[%emt 0:00:00]} Nc5 {[%emt 0:00:15]} 68. Kf3 {[%emt 0:00:00]} Ne6 {[%emt 0:00:16]} 69. Ba4 {[%emt 0:00:00]} Nd4+ {[%emt 0:02:28]} 70. Kf4 {[%emt 0:00:00]} Ne6+ {[%emt 0:00:30]} 71. Kf3 {[%emt 0:00:00]} Nc5 {[%emt 0:00:14]} 72. Be8 {[%emt 0:00:00]} Nb3 {[%emt 0:00:27]} 73. Kf4 {[%emt 0:00:00]} Nd4 {[%emt 0:00:21]} 74. Ba4 {[%emt 0:00:00]} Ne6+ {[%emt 0:01:03]} 75. Kf3 {[%emt 0:00:00]} g5 {[%emt 0:00:40]} 76. hxg5+ {[%emt 0:00:00]} Kxg5 {[%emt 0:00:11]} 77. Kg2 {[%emt 0:00:00]} Nd4 {[%emt 0:00:29]} 78. Bd1 {[%emt 0:00:00]} Nb5 {[%emt 0:00:08]} 79. Be2 {[%emt 0:00:00]} Nc3 {[%emt 0:00:05]} 80. Bf3 {[%emt 0:00:00]} Ne4 {[%emt 0:00:42]} 81. Bd1 {[%emt 0:00:00]} Nf6 {[%emt 0:00:14]} 82. Be2 {[%emt 0:00:00]} Ng4 {[%emt 0:00:04]} 83. Kf3 $1 {[%emt 0:00:00]} Ne5+ {[%emt 0:01:15]} 84. Kg2 {[%emt 0:00:00]} Ng6 {[%emt 0:00:27]} 85. Bd1 {[%emt 0:00:00]} Ne7 {[%emt 0:00:56]} 86. Bf3 {[%emt 0:00:00]} Ng8 {[%emt 0:00:12]} 87. Bd5 {[%emt 0:00:00]} Nf6 {[%emt 0:00:03]} 88. Bf3 {[%emt 0:00:00]} Nd7 {[%emt 0:00:29]} 89. Bd1 {[%emt 0:00:00]} Ne5 {[%emt 0:00:06]} 90. Be2 {[%emt 0:00:00]} h4 {[%emt 0:00:51]} 91. gxh4+ {[%emt 0:00:00]} Kxh4 {[%emt 0:00:02]} 92. Ba6 {[%emt 0:00:00]} f4 {[%emt 0:00:07]} 93. Bb7 {[%emt 0:00:00]} Kg5 {[%emt 0:00:13]} 94. Kf2 {[%emt 0:00:00]} f3 {[%emt 0:00:52]} 95. Bxf3 {[%emt 0:00:00]} Nxf3 {[%emt 0:00:02]} 96. Kxf3 {[%emt 0:49:31]} 1/2-1/2

[Event "13th Palmanova Festival A 2024"]
[Site "Palmanova"]
[Date "2024.12.29"]
[Round "3.9"]
[White "Dolas, Aarush"]
[Black "Knudsen, Simon"]
[Result "0-1"]
[ECO "B33"]
[WhiteElo "2015"]
[BlackElo "2303"]
[Annotator "RC"]
[PlyCount "62"]
[EventDate "2024.12.27"]
[EventCountry "ITA"]
[SourceTitle "playchess.com"]
[Source "ChessBase"]
[SourceQuality "1"]
[TimeControl "6000+30"]

1. e4 {[%emt 0:01:14]} c5 {[%emt 0:01:24]} 2. Nf3 {[%emt 0:01:14]} Nc6 {[%emt 0:00:13]} 3. d4 {[%emt 0:00:10]} cxd4 {[%emt 0:00:07]} 4. Nxd4 {[%emt 0:00:16]} Nf6 {[%emt 0:00:08]} 5. Nc3 {[%emt 0:00:04]} e5 {[%emt 0:00:24]} 6. Ndb5 {[%emt 0:00:29]} d6 {[%emt 0:03:19]} 7. Bg5 {[%emt 0:00:35]} a6 {[%emt 0:01:02]} 8. Na3 {[%emt 0:00:12]} b5 {[%emt 0:00:13]} 9. Nd5 {[%emt 0:00:24]} Be7 {[%emt 0:00:07]} 10. Bxf6 {[%emt 0:00:20]} Bxf6 {[%emt 0:00:08]} 11. c3 {[%emt 0:01:08]} Ne7 {[%emt 0:00:19]} 12. Nc2 {[%emt 0:07:31]} Bb7 {[%emt 0:11:55]} 13. Nce3 {[%emt 0:01:01]} Bg5 {[%emt 0:00:10]} 14. Nxe7 {[%emt 0:01:48]} Bxe3 {[%emt 0:17:00]} 15. Nd5 {[%emt 0:08:40]} Bc5 {[%emt 0:03:13]} 16. b4 {[%emt 0:14:09]} Ba7 {[%emt 0:00:09]} 17. Be2 {[%emt 0:00:57]} O-O {[%emt 0:04:59]} 18. O-O {[%emt 0:03:00]} Kh8 {[%emt 0:00:46]} 19. a4 {[%emt 0:16:18]} bxa4 {[%emt 0:05:46]} 20. Rxa4 {[%emt 0:00:44]} f5 {[%emt 0:00:12]} 21. exf5 {[%emt 0:01:10]} Rxf5 {[%emt 0:00:46]} 22. Bf3 {[%emt 0:08:51]} e4 {[%emt 0:16:18]} 23. Bxe4 {[%emt 0:00:26]} Rxf2 {[%emt 0:00:11]} 24. Rxf2 {[%emt 0:02:26]} Qh4 {[%emt 0:00:24]} 25. Qf3 {[%emt 0:01:51]} Bxf2+ {[%emt 0:00:10]} 26. Kh1 {[%emt 0:00:37]} Re8 {[%emt 0:03:06]} 27. Ra1 {[%emt 0:09:17]} Qxe4 {[%emt 0:00:35]} 28. Qxf2 {[%emt 0:00:11]} Qxd5 {[%emt 0:00:12]} 29. Rf1 {[%emt 0:00:22]} h6 {[%emt 0:00:40]} 30. h3 {[%emt 0:01:40]} Re6 {[%emt 0:03:13]} 31. Qg3 {[%emt 0:00:56]} Qe4 {[%emt 0:01:14]} 0-1

[Event "13th Palmanova Festival A 2024"]
[Site "Palmanova"]
[Date "2024.12.29"]
[Round "3.10"]
[White "Hercegovac, Neven"]
[Black "Pegno, Mattia"]
[Result "0-1"]
[ECO "C45"]
[WhiteElo "2287"]
[BlackElo "2243"]
[Annotator "RC"]
[PlyCount "96"]
[EventDate "2024.12.27"]
[EventCountry "ITA"]
[SourceTitle "playchess.com"]
[Source "ChessBase"]
[SourceQuality "1"]
[TimeControl "6000+30"]

1. e4 {[%emt 0:14:46]} e5 {[%emt 0:01:26]} 2. Nf3 {[%emt 0:00:05]} Nc6 {[%emt 0:00:07]} 3. d4 {[%emt 0:00:05]} exd4 {[%emt 0:00:19]} 4. Nxd4 {[%emt 0:00:07]} Nf6 {[%emt 0:00:15]} 5. Nxc6 {[%emt 0:00:06]} bxc6 {[%emt 0:00:04]} 6. Nd2 {[%emt 0:00:05]} d5 {[%emt 0:03:14]} 7. exd5 {[%emt 0:00:29]} cxd5 {[%emt 0:00:08]} 8. Bb5+ {[%emt 0:00:03]} Bd7 {[%emt 0:00:12]} 9. Bxd7+ {[%emt 0:00:03]} Qxd7 {[%emt 0:00:19]} 10. O-O {[%emt 0:00:06]} Be7 {[%emt 0:03:27]} 11. b3 {[%emt 0:00:04]} O-O {[%emt 0:05:49]} 12. Bb2 {[%emt 0:01:00]} Rfe8 {[%emt 0:09:08]} 13. Qf3 {[%emt 0:00:14]} Qg4 {[%emt 0:15:34]} 14. Rad1 {[%emt 0:06:43]} c6 {[%emt 0:16:22]} 15. Rfe1 {[%emt 0:05:55]} Bb4 {[%emt 0:10:42]} 16. Rxe8+ {[%emt 0:04:43]} Rxe8 {[%emt 0:01:12]} 17. Bxf6 {[%emt 0:00:37]} Qxf3 {[%emt 0:01:18]} 18. Nxf3 {[%emt 0:00:05]} gxf6 {[%emt 0:00:12]} 19. Kf1 {[%emt 0:01:43]} a5 {[%emt 0:07:34]} 20. a4 {[%emt 0:05:30]} Kg7 {[%emt 0:05:49]} 21. g3 {[%emt 0:04:15]} Kg6 {[%emt 0:03:44]} 22. Rd4 {[%emt 0:09:46]} h5 {[%emt 0:05:14]} 23. Rd3 {[%emt 0:05:03]} f5 {[%emt 0:08:32]} 24. c3 {[%emt 0:04:44]} Bc5 {[%emt 0:00:11]} 25. c4 {[%emt 0:00:37]} dxc4 {[%emt 0:04:20]} 26. Rc3 {[%emt 0:00:36]} Bb4 {[%emt 0:01:55]} 27. Rxc4 {[%emt 0:00:17]} c5 {[%emt 0:00:03]} 28. Nh4+ {[%emt 0:02:39]} Kf6 {[%emt 0:00:46]} 29. Rf4 {[%emt 0:09:01]} Re5 {[%emt 0:00:13]} 30. Rf3 {[%emt 0:01:28]} Rd5 {[%emt 0:05:57]} 31. Kg2 {[%emt 0:11:54]} Ke6 {[%emt 0:01:10]} 32. Kh3 {[%emt 0:02:15]} Bd2 {[%emt 0:00:04]} 33. Ng2 {[%emt 0:00:45]} Rd4 {[%emt 0:00:38]} 34. Ne3 {[%emt 0:02:34]} Rd3 {[%emt 0:00:40]} 35. Kg2 {[%emt 0:04:11]} Bxe3 {[%emt 0:00:45]} 36. Rxe3+ {[%emt 0:01:35]} Rxe3 {[%emt 0:00:02]} 37. fxe3 {[%emt 0:00:08]} Kd5 {[%emt 0:00:08]} 38. Kf3 {[%emt 0:00:03]} c4 {[%emt 0:01:16]} 39. bxc4+ {[%emt 0:00:04]} Kxc4 {[%emt 0:00:05]} 40. Kf4 {[%emt 0:06:02]} Kb4 {[%emt 0:00:15]} 41. Kxf5 {[%emt 0:00:06]} Kxa4 {[%emt 0:00:08]} 42. Kf6 {[%emt 0:00:57]} Kb5 {[%emt 0:00:55]} 43. e4 {[%emt 0:00:06]} a4 {[%emt 0:00:05]} 44. e5 {[%emt 0:00:03]} a3 {[%emt 0:00:05]} 45. Kxf7 {[%emt 0:00:03]} a2 {[%emt 0:00:04]} 46. e6 {[%emt 0:00:04]} a1=Q {[%emt 0:00:07]} 47. e7 {[%emt 0:00:02]} Qf1+ {[%emt 0:00:28]} 48. Kg7 {[%emt 0:00:03]} Qe2 {[%emt 0:00:08]} 0-1

[Event "13th Palmanova Festival A 2024"]
[Site "Palmanova"]
[Date "2024.12.29"]
[Round "3.11"]
[White "Rossi, Gabriele Valerio"]
[Black "Solomon, Kenny"]
[Result "1/2-1/2"]
[ECO "B07"]
[WhiteElo "2007"]
[BlackElo "2277"]
[Annotator "RC"]
[PlyCount "62"]
[EventDate "2024.12.27"]
[EventCountry "ITA"]
[SourceTitle "playchess.com"]
[Source "ChessBase"]
[SourceQuality "1"]
[TimeControl "6000+30"]

1. d4 {[%emt 0:00:01]} g6 {[%emt 0:04:06]} 2. e4 {[%emt 0:01:56]} d6 {[%emt 0:00:07]} 3. Nc3 {[%emt 0:01:40]} c6 {[%emt 0:00:12]} 4. h3 {[%emt 0:02:36]} Nf6 {[%emt 0:01:05]} 5. Be3 {[%emt 0:05:57]} Bg7 {[%emt 0:00:25]} 6. Bd3 {[%emt 0:06:44]} e5 {[%emt 0:05:47]} 7. dxe5 {[%emt 0:04:03]} dxe5 {[%emt 0:00:02]} 8. a4 {[%emt 0:04:54]} Qe7 {[%emt 0:08:22]} 9. a5 {[%emt 0:13:45]} Nbd7 {[%emt 0:03:25]} 10. f3 {[%emt 0:02:53]} Nh5 {[%emt 0:09:14]} 11. Nge2 {[%emt 0:01:05]} Nc5 {[%emt 0:03:42]} 12. Na4 {[%emt 0:16:15]} Ne6 {[%emt 0:03:39]} 13. c3 {[%emt 0:05:29]} Nhf4 {[%emt 0:05:12]} 14. Nxf4 {[%emt 0:06:24]} exf4 {[%emt 0:00:06]} 15. Bf2 {[%emt 0:00:34]} O-O {[%emt 0:00:09]} 16. O-O {[%emt 0:00:51]} Rd8 {[%emt 0:00:40]} 17. Qe2 {[%emt 0:03:43]} Bf6 {[%emt 0:10:50]} 18. Rfd1 {[%emt 0:05:43]} Bh4 {[%emt 0:00:07]} 19. b4 {[%emt 0:00:30]} Bxf2+ {[%emt 0:06:49]} 20. Qxf2 {[%emt 0:00:01]} Ng5 {[%emt 0:00:06]} 21. Bf1 {[%emt 0:05:47]} Bd7 {[%emt 0:05:57]} 22. Qc5 {[%emt 0:01:38]} Qf6 {[%emt 0:08:09]} 23. Qd4 {[%emt 0:01:55]} Qe7 {[%emt 0:01:28]} 24. Qc5 {[%emt 0:18:06]} Kf8 {[%emt 0:04:43]} 25. Bc4 {[%emt 0:00:00]} Be6 {[%emt 0:07:25]} 26. Bxe6 {[%emt 0:00:00]} Nxe6 {[%emt 0:00:20]} 27. Rxd8+ {[%emt 0:00:00]} Rxd8 {[%emt 0:00:28]} 28. Qxa7 {[%emt 0:00:40]} Rd2 {[%emt 0:00:02]} 29. Rf1 {[%emt 0:00:01]} Qg5 {[%emt 0:00:59]} 30. Rf2 {[%emt 0:00:04]} Rd1+ {[%emt 0:00:05]} 31. Rf1 {[%emt 0:00:01]} Rd2 {[%emt 0:12:59]} 1/2-1/2